Cogmind - Beta 14 @@@ ROGUE MODE // 2024.11.04 @ 16:51:35 Player: CanadianCogs Result: Destroyed by B-74 Champion with Powered Hammer Performance ------------- Evolutions (7) 3500 Regions Visited (20) 4000 Robots Destroyed (101) 505 Value Destroyed (3424) 3424 Prototype IDs (12) 240 Alien Tech Used (0) 0 Bonus (2538) 2538 TOTAL SCORE: 14207 Bonus ------- Triggered Max Security 1000 High Alert Combat Kills 170 Follower Combat Kills 68 Entered Garrisons 200 Entered DSFs 500 Aligned with FarCom 300 Acquired ECA 300 Cogmind --------- Core Integrity 0/1300 Matter 275/300 Energy 98/100 System Corruption 0% Temperature Cool (0) Movement Core (50) Location -3/Testing Parts ------- > --- POWER (2) -------- (None) > --- PROPULSION (8) --- Armored Heavy Treads > --- UTILITY (8) ------ Improved Hacking Suite System Shield Improved System Shield > --- WEAPON (3) ------- Powered Hammer > --- INVENTORY (5) ---- Light Antimatter Reactor Advanced Cryofiber Web Medium Reflective Plating Graphene Brace Peak State ------------ > --- POWER ------------ Light Antimatter Reactor Light Particle Reactor > --- PROPULSION ------- Armored Medium Treads Armored Medium Treads Advanced Heavy Treads Myomer Leg Myomer Leg Myomer Leg > --- UTILITY ---------- Terrain Scan Processor Improved Targeting Computer Improved Targeting Computer Improved Armor Integrity Analyzer Transmission Jammer Graphene Brace Improved Hacking Suite > --- WEAPON ----------- Compact HERF Cannon Kinetic Spear Kinetic Spear > --- INVENTORY -------- Advanced Cryofiber Web Graphene Brace Improved Hacking Suite System Shield Improved System Shield [Rating: 117] Favorites ----------- Power Ion Engine Engine Ion Engine Power Core Micro Fission Core Reactor Antimatter Reactor Propulsion Combat Airjet Treads Heavy Treads Leg Myomer Leg Wheel Armored Huge Wheel Hover Unit Combat Airjet Utility Machine Analyzer Device Seismic Detector Storage Medium Storage Unit Processor Machine Analyzer Hackware Hacking Suite Protection Hardened Light Armor Plating Weapon Heavy Mace Energy Gun High-powered Shock Rifle Energy Cannon YOLO Cannon Ballistic Gun Assault Rifle Ballistic Cannon Mass Driver Launcher Rocket Launcher Special Weapon Field Lobotomy Kit Impact Weapon Heavy Mace Slashing Weapon Katana Piercing Weapon Kinetic Spear Build | -11 -10 -10 -10 -9 -8 -8 -8 -7 -7 -7 -6 -6 -5 -5 -5 -5 -5 -4 -3 -3 ------- Run | Yrd Mat Min Exi Min Mat Gar Mat Fac Was Fac Fac DSF Fac Was Fac Upp Upp Fac Res Tes Slots Evolved 14 | . . . . . 4 . . 2 . . 2 . 2 . . . . 2 2 . Power 1 | . . . . . . . . . . . . . . . . . . . 1 . Propulsion 6 | . . . . . 4 . . . . . . . . . . . . 1 1 . Utility 6 | . . . . . . . . 2 . . 2 . 2 . . . . . . . Weapon 1 | . . . . . . . . . . . . . . . . . . 1 . . Parts Attached 172 | 7 2 1 6 . 9 1 6 13 7 8 2 17 12 . 10 8 1 24 25 13 Power 20 | 1 . . . . 1 . 1 1 1 3 . 1 . . 1 . 1 6 3 . Engine 5 | 1 . . . . 1 . 1 1 . 1 . . . . . . . . . . Core 7 | . . . . . . . . . . . . 1 . . 1 . 1 4 . . Reactor 8 | . . . . . . . . . 1 2 . . . . . . . 2 3 . Propulsion 46 | 2 . . 2 . 6 . 2 3 5 2 . 6 . . . 2 . 5 7 4 Treads 15 | 2 . . . . . . . . 3 2 . . . . . . . . 4 4 Leg 3 | . . . . . . . . . . . . . . . . . . . 3 . Wheel 1 | . . . . . . . . 1 . . . . . . . . . . . . Hover 27 | . . . 2 . 6 . 2 2 2 . . 6 . . . 2 . 5 . . Flight . | . . . . . . . . . . . . . . . . . . . . . Utility 58 | 2 1 . 2 . 2 1 1 5 1 3 2 5 7 . 5 3 . 3 9 6 Device 28 | 1 . . 1 . 1 1 . 3 1 1 . . 5 . 2 1 . 3 5 3 Storage 4 | 1 1 . . . . . 1 . . . . . . . . . . . 1 . Processor 8 | . . . 1 . . . . 1 . . . . . . 1 2 . . 3 . Hackware 9 | . . . . . 1 . . . . . . 4 . . 1 . . . . 3 Protection 9 | . . . . . . . . 1 . 2 2 1 2 . 1 . . . . . Artifact . | . . . . . . . . . . . . . . . . . . . . . Weapon 48 | 2 1 1 2 . . . 2 4 . . . 5 5 . 4 3 . 10 6 3 Energy Gun 7 | . . . . . . . 1 . . . . 2 2 . . . . 2 . . Energy Cannon 5 | . . . 1 . . . . . . . . . . . . . . 1 2 1 Ballistic Gun 11 | 2 1 1 . . . . 1 . . . . . . . 1 2 . 2 1 . Ballistic Cannon 13 | . . . . . . . . 1 . . . . 3 . 3 1 . 5 . . Launcher 2 | . . . . . . . . 1 . . . 1 . . . . . . . . Special Weapon 1 | . . . 1 . . . . . . . . . . . . . . . . . Impact Weapon 4 | . . . . . . . . 2 . . . . . . . . . . . 2 Slashing Weapon 2 | . . . . . . . . . . . . 2 . . . . . . . . Piercing Weapon 3 | . . . . . . . . . . . . . . . . . . . 3 . Special Melee Weapon . | . . . . . . . . . . . . . . . . . . . . . Unidentified Prototypes 12 | . . . 3 . 1 . . . . 1 . . . . . . . 2 3 2 Parts Lost 70 | . . 1 . . 1 6 1 6 . 1 . 10 . . 4 5 . 21 3 11 Power 7 | . . . . . . 1 . . . . . . . . 1 1 . 2 1 1 Propulsion 28 | . . . . . 1 3 1 5 . . . 3 . . . . . 8 1 6 Utility 21 | . . . . . . 1 . 1 . 1 . 4 . . 1 3 . 6 1 3 Weapon 14 | . . 1 . . . 1 . . . . . 3 . . 2 1 . 5 . 1 Highest Loss Streak 15 | . . 1 . . 1 6 1 6 . 1 . 9 . . 4 2 . 15 3 12 To Critical Strikes . | . . . . . . . . . . . . . . . . . . . . . Average Slot Usage (%) 82 | . 100 100 90 85 89 62 65 81 74 75 80 53 87 94 94 91 94 91 71 39 Engine 4 | . 14 14 14 14 9 3 4 7 5 . . . . . . . . . . . Reactor 2 | . . . . . . . . . 1 6 6 2 . . . . . 1 4 . Treads 10 | . 28 28 12 . . . . . 7 22 20 8 . . . . . . 9 8 Hover 16 | . . . 15 28 53 37 30 27 8 . . 9 35 35 35 35 35 31 . . Device 7 | . 14 14 8 . . 5 . 7 1 3 . . 8 17 17 15 5 9 12 6 Storage 6 | . 14 14 14 14 . . 8 7 7 7 6 3 . . . . . . . . Processor 9 | . . . 4 14 9 9 9 8 15 15 13 7 . . 2 6 17 14 15 9 Hackware 3 | . . . . . 8 3 . . . . . 4 11 11 12 17 17 14 4 7 Protection 2 | . . . . . . . . 5 5 3 20 7 12 11 7 1 . . . . Energy Gun 1 | . . . . . . . 4 . . . . . 10 11 5 . . 1 . . Energy Cannon 1 | . . . 7 14 9 3 . . . . . . . . . . . . 2 . Ballistic Gun 4 | . 28 28 12 . . . 8 . . . . . . . . 1 11 6 . . Ballistic Cannon 1 | . . . . . . . . 3 . . . . . . 4 5 . 5 . . Impact Weapon 4 | . . . . . . . . 7 15 15 13 7 . . . . . . . . Peak Build Rating 117 | 7 8 9 28 28 36 35 19 29 62 64 68 68 78 78 86 91 86 111 117 113 Average Rating 49 | 4 7 8 19 28 34 17 14 25 45 62 67 42 70 78 78 77 86 98 89 63 On Entrance 45 | . 7 8 9 28 28 35 7 18 29 62 63 68 60 78 78 79 80 86 26 109 Naked Turns 17 | . . . . . . . . . . . . 7 . . . . . . . 10 Heaviest Build 56 | 15 30 30 44 43 26 26 21 31 37 40 56 56 48 44 44 31 17 37 41 26 Greatest Support 210 | 40 40 40 40 12 36 36 25 40 210 210 210 210 72 72 72 72 72 84 75 70 Greatest Overweight (x) 10 | . . . 3 3 . . 1 10 1 . . 4 . . . . . 1 8 . Average Overweight (x) . | . . . 1 3 . . . . . . . . . . . . . . . . Largest Inventory Capacity 15 | 8 15 15 15 15 15 5 10 10 10 10 10 10 5 5 5 5 5 5 5 5 Average Capacity 9 | 7 14 15 15 15 5 5 9 10 10 10 10 8 5 5 5 5 5 5 5 5 Most Carried 15 | 5 11 15 15 11 10 4 10 10 10 10 9 9 5 5 5 5 2 5 5 5 Average Carried 7 | 1 6 13 13 11 4 3 8 9 9 9 8 5 3 5 4 3 2 3 3 3 Final Capacity 15 | 8 15 15 15 15 5 5 10 10 10 10 10 5 5 5 5 5 5 5 5 5 Final Carried 15 | 1 11 15 11 11 4 3 10 10 9 10 8 1 5 5 5 3 2 1 5 4 Class Distribution -------------------- 43% | Scavenger-Mutant 31% | Mutant 15% | Hacker-Mutant 6% | Hacker-Gunner Dominant Class ---------------- Mutant | -10/Materials Mutant | -10/Mines Mutant | -10/Exiles Mutant | -9/Mines Scavenger-Mutant | -8/Materials Scavenger-Scout | -8/Garrison Scavenger-Mutant | -8/Materials Scavenger-Mutant | -7/Factory Mutant | -7/Waste Scavenger-Mutant | -7/Factory Scavenger-Mutant | -6/Factory Scavenger-Mutant | -6/DSF Hacker-Mutant | -5/Factory Hacker-Mutant | -5/Waste Hacker-Mutant | -5/Factory Hacker-Mutant | -5/Upper Caves Hacker-Mutant | -5/Upper Caves Hacker-Gunner | -4/Factory Scavenger-Mutant | -3/Research Hacker-Mutant | -3/Testing Resources | -11 -10 -10 -10 -9 -8 -8 -8 -7 -7 -7 -6 -6 -5 -5 -5 -5 -5 -4 -3 -3 ----------- Run | Yrd Mat Min Exi Min Mat Gar Mat Fac Was Fac Fac DSF Fac Was Fac Upp Upp Fac Res Tes Matter Collected 3162 | 197 178 312 . 45 100 . . 242 181 122 . 202 45 . 84 220 . 795 350 89 Remotely . | . . . . . . . . . . . . . . . . . . . . . Salvage Created 3628 | 17 311 310 . . 145 . 65 460 . 1221 . 231 45 . 100 . . 351 372 . Parts 144 | 4 24 19 . . 6 . 4 9 . 25 . 8 4 . 7 . . 7 27 . Haulers Intercepted 1 | . 1 . . . . . . . . . . . . . . . . . . . Recyclers Shooed 5 | . 3 . . . . . . . . . . . . . . . . 2 . . Parts Field Recycled . | . . . . . . . . . . . . . . . . . . . . . Retrieved Matter . | . . . . . . . . . . . . . . . . . . . . . Parts Self-Destructed 5 | . . . . . . . . . . . . . . . . 5 . . . . Prevented 2 | . . . . . . . . . . . . . . . . 2 . . . . Kills | -11 -10 -10 -10 -9 -8 -8 -8 -7 -7 -7 -6 -6 -5 -5 -5 -5 -5 -4 -3 -3 ------- Run | Yrd Mat Min Exi Min Mat Gar Mat Fac Was Fac Fac DSF Fac Was Fac Upp Upp Fac Res Tes Combat Hostiles Destroyed 56 | . 6 4 . . 1 . . 4 . 22 . 5 1 . 2 1 . 6 4 . Melee 14 | . . . . . . . . . . 7 . 3 . . . . . . 4 . Guns 12 | . 6 4 . . . . . . . . . . . . . . . 2 . . Cannons 8 | . . . . . . . . . . . . . 1 . 2 1 . 4 . . AOE 4 | . . . . . . . . 3 . . . 1 . . . . . . . . Classes Destroyed 15 | 1 6 3 . . 1 . . . . 1 . 2 . . . . . . 1 . Worker 4 | . 1 . . . 1 . . 1 . . . . . . . . . . 1 . Builder 14 | . . 5 . . 2 . . 2 . 3 . . . . . . . . 2 . Tunneler 2 | 1 . . . . . . . . . 1 . . . . . . . . . . Hauler 1 | . 1 . . . . . . . . . . . . . . . . . . . Recycler 5 | . 2 . . . 1 . . 2 . . . . . . . . . . . . Mechanic 2 | . . 1 . . . . . . . 1 . . . . . . . . . . Operator 5 | . 1 . . . . . . 2 . 1 . . . . . . . . 1 . Watcher 12 | . 1 . . . . . 2 3 . 3 . . . . 1 . . 1 1 . Swarmer 9 | . 6 . . . . . . . . . . . . . . 1 . . 2 . Grunt 26 | . . 4 . . . . . 3 . 16 . . . . . . . 3 . . Sentry 6 | . . . . . 1 . . 1 . 2 . . . . . . . 2 . . Hunter 2 | . . . . . . . . . . . . . . . . . . . 2 . Programmer 8 | . . . . . . . . . . 4 . . 1 . 2 . . 1 . . Thug 1 | . . . . . . . . . . . . 1 . . . . . . . . Savage 1 | . . . . . . . . . . . . 1 . . . . . . . . Mutant 3 | . . . . . . . . . . . . 3 . . . . . . . . Best Kill Streak 5 | 1 3 5 . . 2 . 1 3 . 3 . 5 1 . 1 1 . 2 2 . Combat Bots Only 5 | . 3 4 . . 1 . . 3 . 3 . 5 1 . 1 1 . 1 1 . Max Kills in Single Turn 3 | 1 2 1 . . 2 . 1 3 . 1 . 1 1 . 1 1 . 1 1 . Gunslinging . | . . . . . . . . . . . . . . . . . . . . . Exploded 3 | . . . . . . . . 3 . . . 1 . . . . . . . . Melee 1 | . . . . . . . . . . 1 . 1 . . . . . . 1 . Uniques/NPCs Destroyed . | . . . . . . . . . . . . . . . . . . . . . Combat | -11 -10 -10 -10 -9 -8 -8 -8 -7 -7 -7 -6 -6 -5 -5 -5 -5 -5 -4 -3 -3 -------- Run | Yrd Mat Min Exi Min Mat Gar Mat Fac Was Fac Fac DSF Fac Was Fac Upp Upp Fac Res Tes Hostile Shots Fired 1423 | . 24 55 . . 8 . 25 80 . 116 . 170 10 1 79 101 7 246 198 303 Missed 494 | . 3 17 . . 3 . 15 23 . 29 . 46 1 1 31 34 6 102 88 95 Damage Taken 16986 | . 170 461 . . 197 80 148 573 . 1261 . 2400 178 . 1092 975 15 3083 2029 4324 Core 3625 | . 21 122 . . . . 74 102 . 195 . 591 . . 60 130 15 1000 456 859 Absorbed by Shields 317 | . . . . . . . . . . 120 . . . . 31 161 . . . 5 Reduced by Siege Mode 73 | . . . . . . . . . . 12 . . . . . . . . . 61 Redirected to Shielding 197 | . . . . . . . . . . . . . 12 . 93 92 . . . . Regen/Repaired (Parts) 962 | . . . . . 28 . 22 . . 704 . . 19 . 189 . . . . . Core Remaining (%) 51 | 100 . . . 42 . . 36 . . 57 . 30 . . . . 79 13 . . Volleys Fired 184 | 1 24 41 . . 8 1 20 17 . . . 2 3 . 15 4 . 45 3 . Largest 3 | 2 2 2 . . 1 1 2 2 . . . 1 2 . 2 2 . 3 1 . Hottest 229 | 40 40 40 . . 100 100 86 86 . . . 39 120 . 120 114 . 229 81 . Shots Fired 352 | 2 48 82 . . 8 . 30 24 . . . 2 6 . 29 9 . 109 3 . Gun 253 | 2 48 82 . . . . 30 14 . . . . 2 . 13 . . 60 2 . Cannon 93 | . . . . . 8 . . 6 . . . . 4 . 16 9 . 49 1 . Launcher 6 | . . . . . . . . 4 . . . 2 . . . . . . . . Special . | . . . . . . . . . . . . . . . . . . . . . Kinetic 292 | 2 48 82 . . . . 20 13 . . . . 4 . 16 9 . 96 2 . Thermal 36 | . . . . . 8 . 10 7 . . . . . . . . . 11 . . Explosive 6 | . . . . . . . . 4 . . . 2 . . . . . . . . Electromagnetic 18 | . . . . . . . . . . . . . 2 . 13 . . 2 1 . Robot Hit Streak 8 | 1 8 8 . . 1 . 7 6 . . . 4 5 . 6 3 . 7 1 . Robot Miss Streak 6 | . 4 4 . . 6 . 6 4 . . . . 2 . 3 3 . 3 2 . Penetration Max 1 | . . . . . . . . . . . . . . . . . . 1 . . Secondary Targets 3 | . 1 2 . . . . . . . . . . . . . . . . . . Max Gunslinging Chain 1 | . 1 1 . . . . . . . . . . . . . . . . . . Shots Hit Robots 325 | 1 29 51 . . 1 . 17 29 . 69 . 25 3 . 18 4 . 60 16 2 Core Hits 102 | 1 16 15 . . 5 . 5 12 . 6 . 5 1 . 7 . . 17 11 1 Critical Kills 7 | . 1 . . . 1 . . 1 . 4 . . . . . . . . . . Critical Parts Destroyed 20 | . . . . . . . . 5 . 12 . 2 . . . . . 1 . . Critical Strikes 39 | . 1 . . . 1 . . 6 . 16 . 2 . . 1 1 . 10 1 . Meltdown 1 | . . . . . 1 . . . . . . . . . . . . . . . Destroy 2 | . 1 . . . . . . . . . . . . . . . . 1 . . Blast 10 | . . . . . . . . . . . . . . . . 1 . 9 . . Corrupt 1 | . . . . . . . . . . . . . . . 1 . . . . . Smash 24 | . . . . . . . . 6 . 16 . 2 . . . . . . . . Impale 1 | . . . . . . . . . . . . . . . . . . . 1 . Melee Attacks 184 | . . . . . . . . 18 6 101 . 28 . . . . . . 24 7 Impact 155 | . . . . . . . . 18 6 101 . 26 . . . . . . . 4 Slashing 2 | . . . . . . . . . . . . 2 . . . . . . . . Piercing 27 | . . . . . . . . . . . . . . . . . . . 24 3 Sneak Attacks 16 | . . . . . . . . 4 . 8 . . . . . . . . 4 . Combat Hostiles . | . . . . . . . . . . . . . . . . . . . . . Follow-up Attacks 23 | . . . . . . . . 4 . 10 . 3 . . . . . . 5 1 Damage Inflicted 11074 | 13 365 720 . . 519 . 271 1280 . 3047 . 1213 94 . 643 105 . 1954 756 94 Guns 2456 | 13 365 714 . . . . 271 112 . . . . 5 . 77 . . 871 28 . Cannons 1861 | . . . . . 133 . . 56 . . . . 89 . 419 105 . 1059 . . Explosions 1191 | . . . . . 386 . . 237 . . . 444 . . 124 . . . . . Melee 5513 | . . . . . . . . 875 . 3047 . 769 . . . . . . 728 94 Ramming 53 | . . 6 . . . . . . . . . . . . 23 . . 24 . . Kinetic 3815 | 13 365 714 . . . . 168 98 . . . . 89 . 419 105 . 1816 28 . Thermal 912 | . . . . . 519 . 103 70 . . . . . . 124 . . 96 . . Explosive 681 | . . . . . . . . 237 . . . 444 . . . . . . . . Electromagnetic 100 | . . . . . . . . . . . . . 5 . 77 . . 18 . . Impact 4638 | . . . . . . . . 875 . 3047 . 716 . . . . . . . . Slashing 53 | . . . . . . . . . . . . 53 . . . . . . . . Piercing 822 | . . . . . . . . . . . . . . . . . . . 728 94 Highest Corruption 28 | . . . . . . . . . . 5 . 9 . 15 28 28 28 5 . . Average Corruption 10 | . . . . . . . . . . 2 . 6 . 7 21 28 28 2 . . Corruption Purged 2 | . . . . . . . . . . . . . . . . . . 2 . . Corruption Blocked . | . . . . . . . . . . . . . . . . . . . . . Effects 125 | . . . . . . . . . . 28 . 5 . 6 36 45 1 4 . . Message Errors 29 | . . . . . . . . . . 8 . . . 1 7 13 . . . . Matter Fused 27 | . . . . . . . . . . 6 . 1 . . 13 5 1 1 . . Heat Flow Errors 8 | . . . . . . . . . . 3 . 1 . . 1 3 . . . . Energy Discharges 18 | . . . . . . . . . . 3 . 2 . . 5 7 . 1 . . Parts Rejected 2 | . . . . . . . . . . . . . . . . 2 . . . . Parts Fused 2 | . . . . . . . . . . 2 . . . . . . . . . . Data Loss (minor) 12 | . . . . . . . . . . 5 . 1 . 2 3 1 . . . . Data Loss (major) 8 | . . . . . . . . . . 1 . . . . 2 4 . 1 . . Misfires 1 | . . . . . . . . . . . . . . . . 1 . . . . Alerts 4 | . . . . . . . . . . . . . . 2 1 1 . . . . Misdirections 12 | . . . . . . . . . . . . . . 1 3 8 . . . . Weapon Failures 2 | . . . . . . . . . . . . . . . 1 . . 1 . . Overload Shots . | . . . . . . . . . . . . . . . . . . . . . Overflow Damage 1903 | . . . . . 51 50 . 426 . 1044 . 82 . . 90 20 . 23 117 . Projectiles 97 | . . . . . . . . . . . . . . . 54 20 . 23 . . Explosions 144 | . . . . . 51 50 . . . . . 7 . . 36 . . . . . Melee 1662 | . . . . . . . . 426 . 1044 . 75 . . . . . . 117 . Knockbacks 44 | . . . . . . . . 3 . 25 . 3 . . 7 . . 6 . . Impact 31 | . . . . . . . . 3 . 25 . 3 . . . . . . . . Kinetic 13 | . . . . . . . . . . . . . . . 7 . . 6 . . Secondary . | . . . . . . . . . . . . . . . . . . . . . Self-Inflicted Damage 493 | . . . . . 57 80 . 44 . . . 106 . . 196 . . 10 . . Shots 8 | . . . . . 1 1 . 2 . . . 2 . . 2 . . . . . Rammed 11 | . . 2 . . . . . . . . . . . . 3 . . 5 . 1 Targets Rammed 11 | . . 2 . . . . . . . . . . . . 3 . . 5 . 1 Kicked . | . . . . . . . . . . . . . . . . . . . . . Crushed . | . . . . . . . . . . . . . . . . . . . . . Highest Temperature 457 | . . 38 . . 64 9 88 72 . 210 . 284 378 . 107 192 . 457 . . Average Temperature 95 | . . 15 . . 21 6 33 25 . 87 . 105 119 . 38 79 . 145 . . Received Heat Transfer 2387 | . 18 285 . . 63 . 36 204 . 395 . 455 . . . 201 . 367 36 327 Effects 7 | . . . . . . . . . . . . . 4 . . . . 3 . . Shutdowns 1 | . . . . . . . . . . . . . . . . . . 1 . . Energy Bleed 4 | . . . . . . . . . . . . . 2 . . . . 2 . . Interference 2 | . . . . . . . . . . . . . 2 . . . . . . . Siege Activations 3 | . . . . . . . . . 1 1 . . . . . . . . . 1 Total Turns 24 | . . . . . . . . . 2 18 . . . . . . . . . 4 Longest Duration 18 | . . . . . . . . . 2 18 . . . . . . . . . 4 Robots Corrupted 30 | . . . . . . . . 7 . 22 . 1 . . . . . . . . Combat Hostiles 17 | . . . . . . . . 1 . 15 . 1 . . . . . . . . Parts Fried 42 | . . . . . . . . 9 . 31 . 2 . . . . . . . . Impact Corruptions 75 | . . . . . . . . 19 . 51 . 5 . . . . . . . . Robots Melted 1 | . . . . . 1 . . . . . . . . . . . . . . . Combat Hostiles 1 | . . . . . 1 . . . . . . . . . . . . . . . Parts Melted 2 | . . . . . 2 . . . . . . . . . . . . . . . Heat Transferred 1111 | . . . . . 480 . 222 148 . . . . . . 150 . . 111 . . Parts Sabotaged . | . . . . . . . . . . . . . . . . . . . . . Parts Stolen . | . . . . . . . . . . . . . . . . . . . . . Parts Stripped . | . . . . . . . . . . . . . . . . . . . . . Power Chain Reactions . | . . . . . . . . . . . . . . . . . . . . . Alert | -11 -10 -10 -10 -9 -8 -8 -8 -7 -7 -7 -6 -6 -5 -5 -5 -5 -5 -4 -3 -3 ------- Run | Yrd Mat Min Exi Min Mat Gar Mat Fac Was Fac Fac DSF Fac Was Fac Upp Upp Fac Res Tes Peak Influence 1650 | 5 230 134 . . 308 70 122 195 17 617 301 237 150 52 551 . . 539 413 1650 Initial 301 | . 3 30 . . . 70 12 55 14 . 301 210 100 52 22 . . 270 168 231 Average 203 | 1 92 26 . . 187 42 62 112 7 320 301 186 121 42 404 . . 277 220 1575 Maximum Alert Level 5 | . 1 . . . 1 . . . . 2 1 1 . . 2 . . 2 2 5 Low Security (%) 59 | 100 72 100 . 100 53 100 100 100 100 25 . 49 100 100 1 . . 10 39 . Level 1 25 | . 27 . . . 46 . . . . 36 100 50 . . 43 . . 85 57 . Level 2 12 | . . . . . . . . . . 37 . . . . 54 . . 3 2 . Level 3 . | . . . . . . . . . . . . . . . . . . . . . Level 4 . | . . . . . . . . . . . . . . . . . . . . . Level 5 . | . . . . . . . . . . . . . . . . . . . . . High Security . | . . . . . . . . . . . . . . . . . . . . . Max Security 1 | . . . . . . . . . . . . . . . . . . . . 99 Sterilizations 1 | . . . . . . . . . . . . 1 . . . . . . . . Squads Dispatched 58 | . 1 1 . . 2 . 1 9 . 13 . 2 . . 4 . . 10 3 12 Investigation 21 | . 1 . . . 1 . 1 6 . 8 . . . . 2 . . 2 . . Extermination 8 | . . . . . . . . 1 . 4 . . . . . . . 2 1 . Reinforcement 13 | . . . . . 1 . . 2 . 1 . 2 . . 2 . . 3 2 . Assault 13 | . . 1 . . . . . . . . . . . . . . . . . 12 Garrison 3 | . . . . . . . . . . . . . . . . . . 3 . . Intercept . | . . . . . . . . . . . . . . . . . . . . . Searches Triggered . | . . . . . . . . . . . . . . . . . . . . . Construction Impeded 3 | . . . . . . . . 1 . . . . . . 1 . . 1 . . Haulers Reinforced . | . . . . . . . . . . . . . . . . . . . . . Active Scanning Responses . | . . . . . . . . . . . . . . . . . . . . . Cargo Convoy Interrupts 1 | . . . . . . . . . . . . . . . . . . 1 . . Stealth | -11 -10 -10 -10 -9 -8 -8 -8 -7 -7 -7 -6 -6 -5 -5 -5 -5 -5 -4 -3 -3 --------- Run | Yrd Mat Min Exi Min Mat Gar Mat Fac Was Fac Fac DSF Fac Was Fac Upp Upp Fac Res Tes Distress Signals 8 | . 1 . . . 1 . 1 . . 3 . . . . . . . 2 . . Communications Jammed 22 | . . . . . . . . . . . . . . . . . . . 22 . Distress Signals 22 | . . . . . . . . . . . . . . . . . . . 22 . Times Spotted 272 | . 10 11 . . 9 2 12 11 . 35 . 19 1 8 10 38 5 39 30 32 Peak Tracking Total 30 | . 4 4 . . 5 2 6 3 . 3 . 7 1 6 3 10 7 13 13 30 Tactical Retreats 39 | . 1 . . . 2 . 4 . . 3 . 3 . 1 1 14 . 2 6 2 Traps | -11 -10 -10 -10 -9 -8 -8 -8 -7 -7 -7 -6 -6 -5 -5 -5 -5 -5 -4 -3 -3 ------- Run | Yrd Mat Min Exi Min Mat Gar Mat Fac Was Fac Fac DSF Fac Was Fac Upp Upp Fac Res Tes Traps Triggered 8 | . . . . . . 2 . 2 . 1 . . 1 . 1 . . . 1 . Indirectly . | . . . . . . . . . . . . . . . . . . . . . Trap Hack Attempts . | . . . . . . . . . . . . . . . . . . . . . Triggered . | . . . . . . . . . . . . . . . . . . . . . Disarmed . | . . . . . . . . . . . . . . . . . . . . . Reprogrammed . | . . . . . . . . . . . . . . . . . . . . . Reused . | . . . . . . . . . . . . . . . . . . . . . Traps Extracted . | . . . . . . . . . . . . . . . . . . . . . Installed . | . . . . . . . . . . . . . . . . . . . . . Triggered 1 | . . . . . . . . . . . . . . . . . . 1 . . Machines | -11 -10 -10 -10 -9 -8 -8 -8 -7 -7 -7 -6 -6 -5 -5 -5 -5 -5 -4 -3 -3 ---------- Run | Yrd Mat Min Exi Min Mat Gar Mat Fac Was Fac Fac DSF Fac Was Fac Upp Upp Fac Res Tes Machines Disabled 17 | . . . . . 3 . . 1 . 1 . . . . 9 . . 2 . 1 Max in Single Turn 8 | . . . . . 2 . . 1 . 1 . . . . 8 . . 1 . 1 Garrison Access 5 | . . . . . . . . . . 1 . . . . 2 . . 2 . . Machines Repaired . | . . . . . . . . . . . . . . . . . . . . . Machines Dismantled . | . . . . . . . . . . . . . . . . . . . . . Machines Sabotaged . | . . . . . . . . . . . . . . . . . . . . . Overloaded Fab Kills . | . . . . . . . . . . . . . . . . . . . . . Hacking | -11 -10 -10 -10 -9 -8 -8 -8 -7 -7 -7 -6 -6 -5 -5 -5 -5 -5 -4 -3 -3 --------- Run | Yrd Mat Min Exi Min Mat Gar Mat Fac Was Fac Fac DSF Fac Was Fac Upp Upp Fac Res Tes Machines Accessed 57 | . 6 . . . 6 . 4 8 . 14 1 . 2 . 7 1 . 5 3 . Terminals 31 | . 5 . . . 3 . 3 7 . 7 1 . . . 2 . . 2 1 . Fabricators 2 | . . . . . . . . . . 1 . . 1 . . . . . . . Repair Stations 9 | . . . . . 1 . 1 . . 4 . . 1 . 2 . . . . . Recycling Units 5 | . 1 . . . . . . 1 . . . . . . 1 . . 1 1 . Scanalyzers 3 | . . . . . 1 . . . . 1 . . . . . . . . 1 . Garrison Access 6 | . . . . . 1 . . . . 1 . . . . 2 . . 2 . . Total Hacks 127 | . 15 . . . 12 . 10 18 . 33 1 . 4 . 17 1 . 11 5 . Successful 73 | . 12 . . . 10 . 5 5 . 15 1 . 3 . 11 1 . 6 4 . Failed 53 | . 2 . . . 2 . 5 13 . 18 . . 1 . 6 . . 5 1 . Catastrophic 8 | . . . . . . . . 5 . 2 . . 1 . . . . . . . Database Lockouts 1 | . 1 . . . . . . . . . . . . . . . . . . . Manual 68 | . 11 . 1 . 7 . 7 17 . 19 . . . . 3 . . 2 1 . Terminals 71 | . 14 . . . 8 . 7 16 . 16 1 . . . 2 . . 5 2 . Fabricators 6 | . . . . . . . . . . 4 . . 2 . . . . . . . Repair Stations 25 | . . . . . 2 . 3 . . 9 . . 2 . 9 . . . . . Recycling Units 8 | . 1 . . . . . . 2 . . . . . . 2 . . 2 1 . Scanalyzers 6 | . . . . . 1 . . . . 3 . . . . . . . . 2 . Garrison Access 10 | . . . . . 1 . . . . 1 . . . . 4 . . 4 . . Terminal Hacks 16 | . 5 . . . 3 . . 2 . 1 1 . . . 1 1 . 2 . . Robot Analysis 6 | . 2 . . . 1 . . 2 . 1 . . . . . . . . . . Open Door 1 | . . . . . . . . . . . . . . . . 1 . . . . Open DSF 2 | . . . . . . . . . . . 1 . . . 1 . . . . . Alert Level 1 | . . . . . . . . . . . . . . . . . . 1 . . Hauler Manifests 2 | . 1 . . . 1 . . . . . . . . . . . . . . . Zone Layout 4 | . 2 . . . 1 . . . . . . . . . . . . 1 . . Fabricator Hacks 1 | . . . . . . . . . . . . . 1 . . . . . . . Build 1 | . . . . . . . . . . . . . 1 . . . . . . . Repair Station Hacks 17 | . . . . . 2 . 2 . . 6 . . 2 . 5 . . . . . Scan Component 9 | . . . . . 1 . 1 . . 3 . . 1 . 3 . . . . . Repair 8 | . . . . . 1 . 1 . . 3 . . 1 . 2 . . . . . Recycling Unit Hacks 4 | . . . . . . . . . . . . . . . 2 . . 1 1 . Retrieve Matter 3 | . . . . . . . . . . . . . . . 1 . . 1 1 . Retrieve Components 1 | . . . . . . . . . . . . . . . 1 . . . . . Scanalyzer 4 | . . . . . . . . . . 2 . . . . . . . . 2 . Insert Component 2 | . . . . . . . . . . 1 . . . . . . . . 1 . Analyze 2 | . . . . . . . . . . 1 . . . . . . . . 1 . Garrison Access Hacks 3 | . . . . . 1 . . . . . . . . . 1 . . 1 . . Unlock Access 1 | . . . . . 1 . . . . . . . . . . . . . . . Seal Access 2 | . . . . . . . . . . . . . . . 1 . . 1 . . Unauthorized Hacks 27 | . 6 . . . 4 . 3 3 . 6 . . . . 2 . . 2 1 . Terminals 22 | . 5 . . . 3 . 3 3 . 5 . . . . 1 . . 1 1 . Assimilate 1 | . 1 . . . . . . . . . . . . . . . . . . . Botnet 21 | . 4 . . . 3 . 3 3 . 5 . . . . 1 . . 1 1 . Fabricators . | . . . . . . . . . . . . . . . . . . . . . Repair Stations . | . . . . . . . . . . . . . . . . . . . . . Recycling Units 1 | . 1 . . . . . . . . . . . . . . . . . . . Tunnel 1 | . 1 . . . . . . . . . . . . . . . . . . . Scanalyzers 1 | . . . . . 1 . . . . . . . . . . . . . . . Extract 1 | . . . . . 1 . . . . . . . . . . . . . . . Garrison Access 3 | . . . . . . . . . . 1 . . . . 1 . . 1 . . Jam 3 | . . . . . . . . . . 1 . . . . 1 . . 1 . . Data Cores Recovered 1 | . 1 . . . . . . . . . . . . . . . . . . . Used 1 | . 1 . . . . . . . . . . . . . . . . . . . Hacking Detections 41 | . 4 . . . 6 . 3 7 . 11 . . 2 . 4 . . 2 2 . Full Trace Events 17 | . 1 . . . . . 1 6 . 7 . . . . 1 . . 1 . . Feedback Events . | . . . . . . . . . . . . . . . . . . . . . Feedback Blocked . | . . . . . . . . . . . . . . . . . . . . . Robot Schematics Acquired . | . . . . . . . . . . . . . . . . . . . . . Robots Built . | . . . . . . . . . . . . . . . . . . . . . Authchips . | . . . . . . . . . . . . . . . . . . . . . Time . | . . . . . . . . . . . . . . . . . . . . . Total Robot Build Rating . | . . . . . . . . . . . . . . . . . . . . . Part Schematics Acquired 4 | . . . . . 2 . . . . 1 . . . . . . . . 1 . Parts Built 2 | . . . . . . . . . . . . . 2 . . . . . . . Authchips . | . . . . . . . . . . . . . . . . . . . . . Time 53 | . . . . . . . . . . . . . 53 . . . . . . . Total Part Build Rating 12 | . . . . . . . . . . . . . 12 . . . . . . . Parts Repaired 8 | . . . . . 1 . 1 . . 3 . . 1 . 2 . . . . . Time 271 | . . . . . 26 . 26 . . 87 . . 38 . 94 . . . . . Parts Recycled . | . . . . . . . . . . . . . . . . . . . . . Recycled Matter . | . . . . . . . . . . . . . . . . . . . . . Retrieved Matter . | . . . . . . . . . . . . . . . . . . . . . Retrieved Components 3 | . . . . . . . . . . . . . . . 3 . . . . . Parts Scanalyzed 2 | . . . . . . . . . . 1 . . . . . . . . 1 . Part Schematics Acquired 2 | . . . . . . . . . . 1 . . . . . . . . 1 . Parts Damaged . | . . . . . . . . . . . . . . . . . . . . . Bothacking | -11 -10 -10 -10 -9 -8 -8 -8 -7 -7 -7 -6 -6 -5 -5 -5 -5 -5 -4 -3 -3 ------------ Run | Yrd Mat Min Exi Min Mat Gar Mat Fac Was Fac Fac DSF Fac Was Fac Upp Upp Fac Res Tes Used RIF Installer . | . . . . . . . . . . . . . . . . . . . . . Robots Hacked . | . . . . . . . . . . . . . . . . . . . . . Non-combat . | . . . . . . . . . . . . . . . . . . . . . Combat . | . . . . . . . . . . . . . . . . . . . . . Robot Hacks Applied . | . . . . . . . . . . . . . . . . . . . . . Relay Couplers Released 4 | . . . . . . . . . . 4 . . . . . . . . . . Programmers 4 | . . . . . . . . . . 4 . . . . . . . . . . Fabnet Peak Effective % . | . . . . . . . . . . . . . . . . . . . . . Robots Rewired 1 | . . . . . . . . . . . . 1 . . . . . . . . Allies Hacked . | . . . . . . . . . . . . . . . . . . . . . Hacks Repelled . | . . . . . . . . . . . . . . . . . . . . . Allies | -11 -10 -10 -10 -9 -8 -8 -8 -7 -7 -7 -6 -6 -5 -5 -5 -5 -5 -4 -3 -3 -------- Run | Yrd Mat Min Exi Min Mat Gar Mat Fac Was Fac Fac DSF Fac Was Fac Upp Upp Fac Res Tes Total Allies 5 | . 1 2 . . . . . . . . . 1 . 1 . . . . . . Largest Group 2 | . 1 2 . . . . . . . . . 1 . 1 . . . . . . Highest-Rated Group 89 | . 10 62 . . . . . . . . . 89 . 31 . . . . . . Highest-Rated Ally 89 | . 10 31 . . . . . . . . . 89 . 31 . . . . . . Warlord Squad Rendezvous 2 | . . . . . . . . . . . . . . . . . . 2 . . Dakka 1 | . . . . . . . . . . . . . . . . . . 1 . . Infantry 1 | . . . . . . . . . . . . . . . . . . 1 . . Total Orders . | . . . . . . . . . . . . . . . . . . . . . Ally Attacks 31 | . . 17 . . . . . . . . . 3 . 11 . . . . . . Total Damage 549 | . . 209 . . . . . . . . . 153 . 187 . . . . . . Kills 4 | . . 3 . . . . . . . . . 1 . . . . . . . . Allies Corrupted . | . . . . . . . . . . . . . . . . . . . . . Allies Melted . | . . . . . . . . . . . . . . . . . . . . . Intel | -11 -10 -10 -10 -9 -8 -8 -8 -7 -7 -7 -6 -6 -5 -5 -5 -5 -5 -4 -3 -3 ------- Run | Yrd Mat Min Exi Min Mat Gar Mat Fac Was Fac Fac DSF Fac Was Fac Upp Upp Fac Res Tes Robot Analysis Total 6 | . 2 . . . 1 . . 2 . 1 . . . . . . . . . . Derelict Logs Recovered 4 | . . 1 . 2 . . . . . . . . . . . 1 . . . . Drone Launches . | . . . . . . . . . . . . . . . . . . . . . Drone Recoveries . | . . . . . . . . . . . . . . . . . . . . . Exploration | -11 -10 -10 -10 -9 -8 -8 -8 -7 -7 -7 -6 -6 -5 -5 -5 -5 -5 -4 -3 -3 ------------- Run | Yrd Mat Min Exi Min Mat Gar Mat Fac Was Fac Fac DSF Fac Was Fac Upp Upp Fac Res Tes Turns Passed 12666 | 79 548 953 467 857 424 122 723 964 823 2677 22 273 297 150 726 735 15 864 723 224 Spaces Moved 8495 | 50 280 514 235 334 405 172 538 714 512 1308 12 175 217 212 550 1035 21 617 367 227 Core 314 | 16 . . . . . . . 7 . . . 55 . . . . . 42 17 177 Treads 2646 | 34 280 514 128 . . . . . 160 1308 12 53 . . . . . . 116 41 Legs 243 | . . . . . . . . . . . . . . . . . . . 234 9 Wheels 486 | . . . . . . . . 134 352 . . . . . . . . . . . Hover 4806 | . . . 107 334 405 172 538 573 . . . 67 217 212 550 1035 21 575 . . Flight . | . . . . . . . . . . . . . . . . . . . . . Fastest Speed 40 | 50 160 160 160 236 40 40 48 44 115 160 160 50 65 65 65 65 65 43 50 50 Average Speed 106 | 124 160 160 194 236 45 49 67 66 129 160 160 95 65 66 65 65 65 67 138 74 Slowest Speed 550 | 160 160 160 236 236 48 56 116 550 160 160 160 250 71 68 68 65 65 122 450 170 Overloaded Moves . | . . . . . . . . . . . . . . . . . . . . . Propulsion Burnouts . | . . . . . . . . . . . . . . . . . . . . . Robots Hopped . | . . . . . . . . . . . . . . . . . . . . . Cave-ins Triggered . | . . . . . . . . . . . . . . . . . . . . . Time Travels 1 | . . . 1 . . . . . . . . . . . . . . . . . Exploration Rate (%) 41 | 3 49 80 62 65 33 29 46 16 96 42 1 89 7 79 18 93 8 16 9 37 Regions Visited 20 Branch Regions 6 Pre-discovered Areas 2 | . 1 . . . . . . . . . . . . . . 1 . . . . Known Exits Taken 2 | . . . . . 1 . . . . . 1 . . . . . . . . . Unknown Exits Taken 12 | 1 1 1 1 1 . . 1 . . 1 . . . . 1 1 1 1 1 . Scrap Searched 3 | . . . . 1 . . . . . . . . . . . 2 . . . . Spaces Dug 20 | . . . . . . . . . 6 7 . . . . . . . 4 2 1 Terrain Destroyed 255 | . . . . . 106 17 . 26 6 7 . 20 4 . 30 5 . 31 2 1 Melee 16 | . . . . . . . . . 6 7 . . . . . . . . 2 1 Projectile 55 | . . . . . 7 . . 2 . . . . 4 . 6 5 . 31 . . AOE 184 | . . . . . 99 17 . 24 . . . 20 . . 24 . . . . . Terrain Rammed . | . . . . . . . . . . . . . . . . . . . . . Walls Destroyed . | . . . . . . . . . . . . . . . . . . . . . Machines Disabled . | . . . . . . . . . . . . . . . . . . . . . Actions | -11 -10 -10 -10 -9 -8 -8 -8 -7 -7 -7 -6 -6 -5 -5 -5 -5 -5 -4 -3 -3 --------- Run | Yrd Mat Min Exi Min Mat Gar Mat Fac Was Fac Fac DSF Fac Was Fac Upp Upp Fac Res Tes Total 11481 | 64 332 562 248 404 622 206 871 1158 664 1742 14 228 362 221 884 1088 21 972 548 270 Wait 2288 | . 16 . . 71 193 17 298 382 130 325 . 7 119 10 292 36 . 262 113 17 Move 8480 | 49 279 513 234 333 405 171 537 714 511 1307 12 174 217 211 549 1034 20 617 366 227 Hop . | . . . . . . . . . . . . . . . . . . . . . Pick Up 95 | 6 10 5 . . 2 . 10 6 2 9 . 1 7 . 8 3 . 10 13 3 Fast Attach 76 | 3 . . 3 . 2 . 2 5 6 6 . 9 6 . 4 4 . 3 15 8 Attach 69 | 4 . 1 3 . 6 1 3 4 . 1 2 8 1 . 6 4 1 10 9 5 Detach 3 | . . . . . . . . . . . . . . . . . . . 1 2 Swap 27 | . 2 . . . 1 . 1 4 1 1 . . 5 . . . . 11 1 . Drop 71 | 1 1 . 8 . 5 . . 6 7 10 . . 4 . 6 3 . 10 9 1 Fire 184 | 1 24 41 . . 8 1 20 17 . . . 2 3 . 15 4 . 45 3 . Melee 152 | . . . . . . . . 14 6 83 . 25 . . . . . . 18 6 Ram 8 | . . . . . . . . . . . . . . . 3 . . 4 . 1 Kick . | . . . . . . . . . . . . . . . . . . . . . Crush 2 | . . 2 . . . . . . . . . . . . . . . . . . Escape Stasis 23 | . . . . . . 16 . 6 . . . . . . 1 . . . . . Rewire 3 | . . . . . . . . . 1 . . 2 . . . . . . . . Trap . | . . . . . . . . . . . . . . . . . . . . . Miscellaneous . | . . . . . . . . . . . . . . . . . . . . . Route ------- -11/Scrapyard -10/Materials (discovered 2 exits: [*Mat] / [*Min]) -10/Mines (discovered 3 exits: [*Mat] / *Exi / [*Sub]) -10/Exiles -9/Mines -8/Materials -8/Garrison -8/Materials -7/Factory -7/Waste -7/Factory -6/Factory -6/DSF -5/Factory -5/Waste -5/Factory (discovered 2 exits: *Fac / *Upp) -5/Upper Caves -5/Upper Caves -4/Factory -3/Research -3/Testing History --------- Turn | Location | Event 7 | -11/Scrapyard | Discovered new exit (range 16) 80 | -11/Scrapyard | Entered Materials 304 | -10/Materials | Build established: Mutant 351 | -10/Materials | Discovered new exit (range 15) 492 | -10/Materials | Discovered new exit (range 16) 576 | -10/Materials | Central database locked down 628 | -10/Materials | Entered Mines 631 | -10/Mines | Received a Mining Laser from a helpful Derelict 697 | -10/Mines | Learned Materials garrison access intel 853 | -10/Mines | Met a Derelict testing a Signal Generator 934 | -10/Mines | Core integrity fell below 50% 981 | -10/Mines | Discovered new exit (range 8) 1281 | -10/Mines | Discovered new exit (range 5) 1575 | -10/Mines | Deemed a non-threat by the Exiles lab entrance 1575 | -10/Mines | Discovered new exit (range 5) 1581 | -10/Mines | Entered Exiles 1620 | -10/Exiles | Met 8R-AWN 1649 | -10/Exiles | Met EX-HEX 1706 | -10/Exiles | Met EX-BIN 1725 | -10/Exiles | Aligned with FarCom system 1727 | -10/Exiles | Given EX-Vault access code 1764 | -10/Exiles | Opened EX-Vault 1772 | -10/Exiles | Found Prototype Device 1772 | -10/Exiles | Identified Chronowheel 1772 | -10/Exiles | Activated Chronowheel 1772 | -10/Exiles | Spacetime reconverged on an earlier point 1779 | -10/Exiles | Found Prototype Special Weapon 1779 | -10/Exiles | Identified Field Lobotomy Kit 1791 | -10/Exiles | Found Prototype Energy Cannon 1791 | -10/Exiles | Identified YOLO Cannon 1857 | -10/Exiles | Warned to stay clear of 0b10 Research branches 1942 | -10/Exiles | Met EX-DEC 2029 | -10/Exiles | Discovered new exit (range 10) 2048 | -10/Exiles | Left Exiles lab with YOLO Cannon 2048 | -10/Exiles | Entered Mines 2078 | -9/Mines | Met a Derelict bent on vengeance 2098 | -9/Mines | Learned Materials emergency access door positions 2726 | -9/Mines | Learned Materials terminal intel 2839 | -9/Mines | Discovered new exit (range 9) 2905 | -9/Mines | Entered Materials 2905 | -8/Materials | Evolved 4 slots: Propulsion x4 2907 | -8/Materials | Loaded intel: 12 terminal locations 2908 | -8/Materials | Loaded intel: 1 garrison access location 3029 | -8/Materials | Repaired Hover Unit 3208 | -8/Materials | Build established: Scavenger-Mutant 3329 | -8/Materials | Identified exit to Garrison 3329 | -8/Materials | Entered Garrison 3357 | -8/Garrison | Triggered checkpoint 3376 | -8/Garrison | YOLO Cannon suddenly exploded 3407 | -8/Garrison | Lost 6 parts (1p3n1u1w) 3445 | -8/Garrison | Discovered new exit (range 12) 3451 | -8/Garrison | Entered Materials 3799 | -8/Materials | Core integrity fell below 50% 3906 | -8/Materials | Discovered new exit (range 5) 4076 | -8/Materials | Repaired Hover Unit? 4174 | -8/Materials | Entered Factory 4174 | -7/Factory | Evolved 2 slots: Utility x2 4985 | -7/Factory | Lost 6 parts (5n1u) 5138 | -7/Factory | Sucked down chute 5138 | -7/Factory | Entered Waste 5138 | -7/Waste | The area was eerily silent 5201 | -7/Waste | Build established: Mutant 5392 | -7/Waste | Discovered new exit (range 13) 5961 | -7/Waste | Entered Factory 6021 | -7/Factory | Build established: Scavenger-Mutant 7884 | -7/Factory | Repaired Hvy. Treads 7913 | -7/Factory | Repaired Hvy. Treads 8553 | -7/Factory | Discovered new exit (range 8) 8581 | -7/Factory | Repaired Antimatter Reactor 8638 | -7/Factory | Entered another Factory area 8638 | -6/Factory | Evolved 2 slots: Utility x2 8660 | -6/Factory | Identified exit to DSF 8660 | -6/Factory | Entered DSF 8694 | -6/DSF | Additional patrols routed to DSF 8717 | -6/DSF | Wild Derelicts raided the area 8805 | -6/DSF | Discovered new exit (range 16) 8831 | -6/DSF | Core integrity fell below 50% 8839 | -6/DSF | Released all parts (5) 8851 | -6/DSF | Lost 9 parts (2n4u3w) 8867 | -6/DSF | Sterilization system engaged 8887 | -6/DSF | Ambient heat levels rising (+10) 8902 | -6/DSF | Ambient heat levels rising (+10) 8917 | -6/DSF | Ambient heat levels rising (+10) 8932 | -6/DSF | Ambient heat levels rising (+10) 8933 | -6/DSF | Entered Factory 8933 | -5/Factory | Evolved 2 slots: Utility x2 9032 | -5/Factory | Fabricated Mic. Fission Core (x2) 9225 | -5/Factory | Repaired Particle Charger 9230 | -5/Factory | Sucked down chute 9230 | -5/Factory | Entered Waste 9231 | -5/Waste | Met a frightened Derelict 9245 | -5/Waste | EMP discharged 9255 | -5/Waste | Spotted C-40 Crusher 9255 | -5/Waste | Spotted C-40 Crusher 9309 | -5/Waste | Spotted C-40 Crusher 9331 | -5/Waste | Spotted C-40 Crusher 9336 | -5/Waste | Spotted C-40 Crusher 9345 | -5/Waste | EMP discharged 9345 | -5/Waste | System corruption reached 10% 9348 | -5/Waste | Spotted C-40 Crusher 9360 | -5/Waste | Build established: Hacker-Mutant 9371 | -5/Waste | Discovered new exit (range 16) 9380 | -5/Waste | Entered Factory 9772 | -5/Factory | Lost 4 parts (1p1u2w) 9992 | -5/Factory | Repaired Imp. Propulsion Shielding 10060 | -5/Factory | Repaired Mass Driver 10085 | -5/Factory | Discovered new exit (range 14) 10096 | -5/Factory | Discovered new exit (range 15) 10106 | -5/Factory | Entered Upper Caves 10129 | -5/Upper Caves | Met a Warlord Commander 10130 | -5/Upper Caves | Learned location of Warlord (-4) 10131 | -5/Upper Caves | Warlord Commander delivered Encrypted Comm Array 10135 | -5/Upper Caves | Found Encrypted Comm Array 10234 | -5/Upper Caves | Encountered a Warlord checkpoint 10380 | -5/Upper Caves | Attracted the attention of an 0b10 outpost 10817 | -5/Upper Caves | Spotted B-75 Beast 10818 | -5/Upper Caves | Learned Factory terminal intel 10836 | -5/Upper Caves | Discovered new exit (range 9) 10837 | -5/Upper Caves | Attracted the attention of an 0b10 checkpoint 10841 | -5/Upper Caves | Entered another Upper Caves area 10844 | -5/Upper Caves | Discovered new exit (range 13) 10856 | -5/Upper Caves | Entered Factory 10856 | -4/Factory | Evolved 2 slots: Propulsion x1, Weapon x1 10857 | -4/Factory | Loaded intel: 26 terminal locations 11121 | -4/Factory | Joined by Warlord Infantry squad 11152 | -4/Factory | Build established: Hacker-Gunner 11164 | -4/Factory | Joined by Warlord Dakka squad 11290 | -4/Factory | Garrison activated, responded to threat 11310 | -4/Factory | Lost 3 allies 11499 | -4/Factory | Lost 5 parts (1p1n1u2w) 11628 | -4/Factory | Cargo convoy interrupted 11700 | -4/Factory | Core integrity fell below 50% 11713 | -4/Factory | Discovered new exit (range 13) 11718 | -4/Factory | Core integrity fell below 20% 11720 | -4/Factory | Entered Research 11720 | -3/Research | Evolved 2 slots: Power x1, Propulsion x1 11737 | -3/Research | Lost 15 parts (1p6n5u3w) 12199 | -3/Research | Build established: Scavenger-Mutant 12400 | -3/Research | Discovered new exit (range 15) 12443 | -3/Research | Entered Testing 12444 | -3/Testing | Maximum security lockdown engaged 12469 | -3/Testing | Core integrity fell below 50% 12490 | -3/Testing | Spotted PX-D9JKQ7021K 12535 | -3/Testing | Lost 12 parts (2p7n2u1w) 12551 | -3/Testing | Released all parts (12) 12553 | -3/Testing | Core integrity fell below 20% 12667 | -3/Testing | Destroyed by B-74 Champion with Powered Hammer Last Messages --------------- 12661_ C-30 ARC bursts open, deploying its payload. 12661_ G-73 Enforcer unfolds itself. 12661_ B-74 Champion unfolds itself. 12661_ G-67 Veteran unfolds itself. 12661_ E-15 Imp unfolds itself. 12662_ E-15 Imp destroyed. 12662_ C-30 ARC bursts open, deploying its payload. 12662_ G-73 Enforcer unfolds itself. 12662_ G-67 Veteran unfolds itself. 12662_ E-15 Imp unfolds itself. 12663_ C-30 ARC bursts open, deploying its payload. 12663_ G-73 Enforcer unfolds itself. 12663_ B-74 Champion unfolds itself. 12663_ G-67 Veteran unfolds itself. 12664_ Slammed into G-73 Enforcer. 12665_ C-30 ARC bursts open, deploying its payload. 12665_ B-74 Champion unfolds itself. 12665_ L-61 Swordsman unfolds itself. 12665_ G-67 Veteran unfolds itself. 12665_ Drone sends a signal. Map ----- +----------------------------------------------------+ | ???????????????? #??????????????? | | ???????????????? #??????????????? | | ?????????????????############# #??????????????? | | ??????????????????????######## #??????????????? | | ??????????????????????#""""" # #??????????????? | | ??????????????????????#""""" # #??????????????? | | ??????????????????????#" " # #??????????????? | | ?????????????????????????" + #??????????????? | | ?????????????????????????" # #???##?????????? | | ?????????????????????????#"" # #?? ??????????? | | ?????????????????????????##### #?? "??????????? | | ?????????????????????????????# #?" "???? ?????? | | ?????????????????????????????# ^#?" """ ?????? | | ?????????????????????????????# # " ??????? | | ?????????????????????????????# ^# """"""???????? | | ?????????????????????######### + """""????????? | | ?????????????????? # " ???? | | ???????????????????########### # " """ ??? | | ???????????????????#! ] # # " "?????? ??? | | ???????????????????# # # """ #?? | | ???????????????????#[ """"" +n g+x #?? | | ???????????????????# """"" #nC #########??????? | | ???????????????????#! """"" # % #??????????????? | | ???????????????????########### #??????????????? | | ??????????????????????###;#####C##########???????? | | ??????????????????????#gb@gg g%% #???????? | | ??????????????????????# l=bgg g #???????? | | ??????????????????????#g" "eg""" g #???????? | | ??????????????????????# "]"e"""" #???????? | | ??????????????????????#l""" """ b #???????? | | ??????????????????????# e #???????? | | ??????????????????????# #???????? | | ??????????????????????# #???????? | | ??????????????????????####################???????? | | | | | | | | | | | | | | | | | | | | | | | | | | | | | | | | | +----------------------------------------------------+ Best States ------------- Heat Dissipation 59 Coolant Potential 120 Energy Generation 39 Energy Capacity 325 Matter Stores 300 Matter Capacity 300 Sight Range 16 Terrain Scan Range 16 Terrain Scan Density 85 Jamming Range 12 Additional Mass Support 9 Armor Coverage 750 Propulsion Shielding 66 Phase Shifting 10 Evasion (%) 65 Targeting Accuracy 12 Target Analysis 6 Core Analysis 6 Armor Integrity Analysis 40 Recoil Reduction 6 Energy Filtering 30 Particle Charging 15 Offensive Hacking 22 Defensive Hacking 22 Item Schematics ----------------- Reaction Control System | -8/Materials | Extracted Seismic Detector | -8/Materials | Extracted Hvy. Rocket Launcher | -7/Factory | Scanalyzed Graphene Brace | -3/Research | Scanalyzed Robot Schematics ------------------ None Fabricated ------------ Mic. Fission Core | x2 | -5/Factory | Preloaded Alien Tech Used ----------------- None Achievements -------------- Below Part-time Excavator Prolific Hacker Respectable Loadout Challenges ------------ None Game ------ Seed CloakingAlertMace Manual? 0 Play Time 02:16:14 Cumulative 59.0 hours Start 2024.11.04 @ 14:32:44 End 2024.11.04 @ 16:51:35 Sessions 1 Manual Loads 0 Difficulty Rogue Special Mode None Game No. 97 Rogue 97 Adventurer 0 Explorer 0 Win Type - Total 0 Types 0/0/0/0/0/0/0/0/0 Lore% 18 Gallery% 38 Achievement% 33 Wizard Run 0 Options --------- Layout 0 ASCII 0 Keyboard 0 Movement Mouse Keybinds 0 Fullscreen 2 Font 18/SmallcapsGlow Map View 38x25 Zoom Use 93% Tactical HUD 1 Map Filters NONE Filters NONE Steam 1 RUN: 37d29d13-dda7-401d-b972-8128442f0039